fUST/lending_fUST_20250705
["ID","MTS","AMOUNT","RATE_DAILY","PERIOD"]
[369623205,1751652653691,-257.162116,0.00019242,2]
[369623206,1751652653700,-165.440118,0.00019252,2]
[369623207,1751652653708,-151.0,0.00019252,2]
[369623208,1751652653717,-151.0,0.00019252,2]
[369623209,1751652653727,-354.244961,0.00019252,2]
[369623210,1751652653736,-151.0,0.00019287,2]
[369623211,1751652653745,-460.0,0.00019299,2]
[369623212,1751652653754,-2000.0,0.000193,2]
[369623213,1751652653763,-151.0,0.000193,2]
[369623214,1751652653773,-250.0,0.00019306,2]
[369623215,1751652653782,-517.98876571,0.00019312,2]
[369623216,1751652653791,-151.0,0.00019315,2]
[369623217,1751652653800,-151.0,0.00019315,2]
[369623218,1751652653810,-151.0,0.00019315,2]
[369623219,1751652653819,-460.0,0.00019325,2]
[369623220,1751652653828,-684.48,0.00019325,2]
[369623221,1751652653837,-460.0,0.00019325,2]
[369623222,1751652653846,-460.0,0.00019325,2]
[369623223,1751652653856,-460.0,0.00019325,2]
[369623224,1751652653865,-2059.78,0.00019325,2]
[369623225,1751652653874,-460.0,0.00019325,2]
[369623226,1751652653884,-151.0,0.00019329,2]
[369623227,1751652653893,-151.0,0.00019329,2]
[369623228,1751652653903,-219.117583,0.00019329,2]
[369623229,1751652653912,-151.0,0.00019329,2]
[369623230,1751652653921,-151.0,0.00019329,2]
[369623231,1751652653930,-198.346605,0.00019329,2]
[369623232,1751652653940,-151.0,0.00019329,2]
[369623233,1751652653949,-151.0,0.00019329,2]
[369623234,1751652653959,-187.46436,0.00019329,2]
[369623235,1751652653968,-192.949382,0.00019329,2]
[369623236,1751652653977,-151.0,0.00019329,2]
[369623237,1751652653987,-151.0,0.00019329,2]
[369623238,1751652653996,-198.608179,0.00019329,2]
[369623239,1751652654005,-198.608179,0.00019329,2]
[369623240,1751652654014,-151.0,0.00019329,2]
[369623241,1751652654024,-318.644713,0.00019329,2]
[369623242,1751652654033,-318.644713,0.00019329,2]
[369623243,1751652654042,-151.0,0.00019329,2]
[369623244,1751652654051,-151.0,0.00019329,2]
[369623245,1751652654061,-151.0,0.00019329,2]
[369623246,1751652654070,-151.0,0.00019329,2]
[369623247,1751652654080,-151.0,0.00019329,2]
[369623248,1751652654090,-177.555674,0.00019329,2]
[369623249,1751652654099,-151.0,0.00019329,2]
[369623250,1751652654109,-406.594405,0.00019329,2]
[369623251,1751652654119,-406.594405,0.00019329,2]
[369623252,1751652654128,-354.244961,0.00019329,2]
[369623253,1751652654138,-151.0,0.00019329,2]
[369623254,1751652654147,-243.074708,0.00019329,2]
[369623255,1751652654156,-243.074708,0.00019329,2]
[369623256,1751652654166,-151.0,0.00019329,2]
[369623257,1751652654175,-261.631205,0.00019329,2]
[369623258,1751652654187,-261.631205,0.00019329,2]
[369623259,1751652654196,-257.162116,0.00019329,2]
[369623260,1751652654205,-257.162116,0.00019329,2]
[369623261,1751652654214,-151.0,0.00019329,2]
[369623262,1751652654223,-151.0,0.00019329,2]
[369623263,1751652654234,-211.95352,0.00019329,2]
[369623264,1751652654243,-211.95352,0.00019329,2]
[369623265,1751652654253,-40440.61314376,0.00019329,2]
[369623270,1751652851367,383.263947,0.00027397,120]
[369623271,1751653109872,151.0,0.00027397,120]
[369623273,1751653118977,423.932242,0.00013699,2]
[369623274,1751653136156,151.0,0.00027397,120]
[369623296,1751653831713,-293.11043088,0.00016199,2]
[369623297,1751653831724,-300.0,0.00016208,2]
[369623298,1751653831735,-47.93670539,0.00016208,2]
[369623299,1751653831823,-308.388,0.00016208,2]
[369623301,1751653831836,-654.67529461,0.00016208,2]
[369623303,1751653831847,-1761.52535972,0.00016209,2]
[369623435,1751653837969,-290.75999998,0.00016209,2]
[369623436,1751653837981,-870.30081818,0.00016209,2]
[369623469,1751653840277,-409.157496,0.00016209,2]
[369623753,1751653842953,-402.80540512,0.00016209,2]
[369623756,1751653842965,-915.60908035,0.00016209,2]
[369623758,1751653842977,-1558.29016145,0.00016209,2]
[369623762,1751653843010,-981.323186,0.00016209,2]
[369624041,1751653845949,-17710.2284932,0.00016209,2]
[369624043,1751653845959,-298.19240203,0.00016338,2]
[369624045,1751653845968,-164.26792311,0.00016438,2]
[369624047,1751653845978,-460.0,0.00016438,2]
[369624049,1751653845987,-1630.66,0.00016438,2]
[369624051,1751653845996,-401.58,0.00016438,2]
[369624053,1751653846005,-460.0,0.00016438,2]
[369624055,1751653846014,-460.0,0.00016438,2]
[369624057,1751653846023,-460.0,0.00016438,2]
[369624059,1751653846032,-460.0,0.00016438,2]
[369624061,1751653846041,-765.08,0.00016438,2]
[369624063,1751653846051,-460.0,0.00016438,2]
[369624065,1751653846060,-460.0,0.00016438,2]
[369624067,1751653846069,-460.0,0.00016438,2]
[369624069,1751653846078,-460.0,0.00016438,2]
[369624071,1751653846087,-460.0,0.00016438,2]
[369624073,1751653846097,-460.0,0.00016438,2]
[369624075,1751653846106,-460.0,0.00016711,2]
[369624077,1751653846115,-460.0,0.00016711,2]
[369624079,1751653846124,-460.0,0.00016711,2]
[369624081,1751653846134,-460.0,0.00016711,2]
[369624083,1751653846143,-799.68,0.00016711,2]
[369624085,1751653846152,-460.0,0.00016711,2]
[369624088,1751653846162,-460.0,0.00016711,2]
[369624090,1751653846171,-460.0,0.00016711,2]
[369624092,1751653846180,-460.0,0.00016711,2]
[369624094,1751653846189,-460.0,0.00016711,2]
[369624096,1751653846198,-409.78,0.00016711,2]
[369624098,1751653846208,-460.0,0.00016711,2]
[369624100,1751653846217,-460.0,0.00016711,2]
[369624102,1751653846227,-151.0,0.00016712,2]
[369624104,1751653846237,-194.834729,0.00016712,2]
[369624106,1751653846247,-194.834729,0.00016712,2]
[369624108,1751653846257,-194.834729,0.00016712,2]
[369624110,1751653846268,-194.834729,0.00016712,2]
[369624112,1751653846278,-151.0,0.00016712,2]
[369624114,1751653846287,-254.915771,0.00016712,2]
[369624116,1751653846297,-254.915771,0.00016712,2]
[369624118,1751653846306,-254.915771,0.00016712,2]
[369624120,1751653846315,-254.915771,0.00016712,2]
[369624122,1751653846325,-460.0,0.00016712,2]
[369624124,1751653846335,-1630.66,0.00016712,2]
[369624126,1751653846344,-460.0,0.00016712,2]
[369624128,1751653846353,-460.0,0.00016712,2]
[369624130,1751653846363,-460.0,0.00016712,2]
[369624132,1751653846372,-460.0,0.00016712,2]
[369624134,1751653846381,-765.08,0.00016712,2]
[369624136,1751653846390,-460.0,0.00016712,2]
[369624138,1751653846399,-460.0,0.00016712,2]
[369624140,1751653846408,-410.32091533,0.00016712,2]
[369624142,1751653846421,-49.67908467,0.00016712,2]
[369624144,1751653846430,-460.0,0.00016712,2]
[369624146,1751653846440,-460.0,0.00016712,2]
[369624148,1751653846450,-460.0,0.00016712,2]
[369624150,1751653846460,-2184.7347843,0.00016881,2]
[369624152,1751653846469,-194.834729,0.00016974,2]
[369624154,1751653846478,-194.834729,0.00016974,2]
[369624156,1751653846489,-194.834729,0.00016974,2]
[369624158,1751653846498,-194.834729,0.00016974,2]
[369624160,1751653846507,-254.915771,0.00016974,2]
[369624162,1751653846518,-254.915771,0.00016974,2]
[369624164,1751653846527,-254.915771,0.00016974,2]
[369624166,1751653846539,-254.915771,0.00016974,2]
[369624167,1751653846549,-300.0,0.00016974,2]
[369624168,1751653846558,-300.0,0.00016974,2]
[369624169,1751653846567,-300.0,0.00016974,2]
[369624170,1751653846577,-300.0,0.00016974,2]
[369624171,1751653846586,-300.0,0.00016974,2]
[369624172,1751653846596,-300.0,0.00016974,2]
[369624173,1751653846607,-300.0,0.00016974,2]
[369624174,1751653846617,-300.0,0.00016974,2]
[369624175,1751653846627,-207.4,0.00016974,2]
[369624177,1751653846636,-500.0,0.00016974,2]
[369624179,1751653846646,-300.0,0.00016974,2]
[369624181,1751653846655,-239.62692428,0.00016974,2]
[369624183,1751653846664,-300.0,0.00016974,2]
[369624185,1751653846673,-460.0,0.00016985,2]
[369624187,1751653846682,-460.0,0.00016985,2]
[369624189,1751653846692,-500.0,0.00016985,2]
[369624191,1751653846702,-500.0,0.00016985,2]
[369624193,1751653846711,-500.0,0.00016985,2]
[369624195,1751653846721,-500.0,0.00016985,2]
[369624197,1751653846730,-500.0,0.00016985,2]
[369624199,1751653846739,-178.21248805,0.00016985,2]
[369624201,1751653846749,-500.0,0.00016985,2]
[369624204,1751653846758,-500.0,0.00016985,2]
[369624206,1751653846767,-500.0,0.00016985,2]
[369624208,1751653846776,-500.0,0.00016985,2]
[369624210,1751653846785,-500.0,0.00016985,2]
[369624212,1751653846795,-513.3118173,0.00016985,2]
[369624214,1751653846804,-460.0,0.00016985,2]
[369624216,1751653846814,-460.0,0.00016985,2]
[369624218,1751653846823,-799.68,0.00016985,2]
[369624220,1751653846834,-460.0,0.00016985,2]
[369624222,1751653846843,-510.25,0.00016985,2]
[369624224,1751653846852,-460.0,0.00016985,2]
[369624226,1751653846861,-460.0,0.00016985,2]
[369624228,1751653846870,-460.0,0.00016985,2]
[369624230,1751653846879,-460.0,0.00016985,2]
[369624232,1751653846889,-460.0,0.00016985,2]
[369624234,1751653846898,-148.28612361,0.00016986,2]
[369624236,1751653846910,-46.54860539,0.00016986,2]
[369624238,1751653846921,-194.834729,0.00016986,2]
[369624240,1751653846930,-194.834729,0.00016986,2]
[369624242,1751653846940,-194.834729,0.00016986,2]
[369624244,1751653846950,-254.915771,0.00016986,2]
[369624246,1751653846960,-254.915771,0.00016986,2]
[369624248,1751653846970,-254.915771,0.00016986,2]
[369624250,1751653846979,-254.915771,0.00016986,2]
[369624252,1751653846988,-460.0,0.00016986,2]
[369624254,1751653846998,-632.2237381,0.00016986,2]
[369625646,1751654359512,402.735629,0.00013699,2]
[369625650,1751654720700,5000.0,0.00015,2]
[369625670,1751655031983,-4626.59680709,0.00015258,2]
[369625671,1751655031996,-373.40319291,0.00015258,2]
[369625672,1751655032005,-169.620828,0.00015413,2]
[369625673,1751655032014,-542.51638675,0.00015616,2]
[369625674,1751655032035,-657.48361325,0.00015616,2]
[369625675,1751655032044,-300.0,0.00015617,2]
[369625677,1751655032054,-24900.0,0.00015618,2]
[369625679,1751655032063,-219.88679616,0.00015945,2]
[369625681,1751655032072,-3530.01364458,0.00016338,2]
[369625683,1751655032081,-22744.29403182,0.00016437,2]
[369625685,1751655032091,-500.0,0.00016437,2]
[369625687,1751655032100,-500.0,0.00016437,2]
[369625689,1751655032109,-500.0,0.00016437,2]
[369625691,1751655032118,-500.0,0.00016437,2]
[369625693,1751655032127,-500.0,0.00016437,2]
[369625695,1751655032136,-500.0,0.00016437,2]
[369625697,1751655032145,-421.20671731,0.00016437,2]
[369625699,1751655032154,-216.96883875,0.00016437,2]
[369625702,1751655032164,-500.0,0.00016437,2]
[369625705,1751655032173,-460.0,0.00016438,2]
[369625708,1751655032183,-460.0,0.00016438,2]
[369625711,1751655032191,-460.0,0.00016438,2]
[369625714,1751655032201,-460.53697442,0.00016438,2]
[369625717,1751655032210,-460.0,0.00016438,2]
[369625720,1751655032219,-460.0,0.00016438,2]
[369625723,1751655032228,-460.0,0.00016438,2]
[369625726,1751655032237,-460.0,0.00016438,2]
[369625729,1751655032246,-460.0,0.00016438,2]
[369625732,1751655032256,-460.0,0.00016438,2]
[369625735,1751655032265,-460.0,0.00016438,2]
[369625758,1751655032423,-460.0,0.00016438,2]
[369625760,1751655032434,-461.50359215,0.00016438,2]
[369625762,1751655032443,-460.0,0.00016438,2]
[369625764,1751655032452,-267.58944586,0.00016438,2]
[369625766,1751655032461,-460.0,0.00016438,2]
[369625768,1751655032471,-460.460256,0.00016438,2]
[369625770,1751655032480,-460.0,0.00016438,2]
[369625772,1751655032490,-460.0,0.00016438,2]
[369625774,1751655032500,-461.19720461,0.00016438,2]
[369625776,1751655032509,-460.0,0.00016438,2]
[369625778,1751655032519,-460.0,0.00016438,2]
[369625780,1751655032529,-460.0,0.00016438,2]
[369625782,1751655032538,-460.0,0.00016438,2]
[369625784,1751655032548,-460.0,0.00016438,2]
[369625786,1751655032558,-1000.0,0.00016438,2]
[369625788,1751655032568,-460.0,0.00016438,2]
[369625790,1751655032579,-460.45268572,0.00016438,2]
[369625792,1751655032589,-460.0,0.00016438,2]
[369625794,1751655032598,-460.0,0.00016438,2]
[369625796,1751655032608,-460.0,0.00016438,2]
[369625798,1751655032618,-460.0,0.00016438,2]
[369625800,1751655032627,-500.0,0.00016438,2]
[369625802,1751655032636,-500.0,0.00016438,2]
[369625804,1751655032646,-500.0,0.00016438,2]
[369625806,1751655032655,-500.0,0.00016438,2]
[369625808,1751655032664,-460.0,0.00016438,2]
[369625810,1751655032674,-460.0,0.00016438,2]
[369625812,1751655032683,-460.0,0.00016438,2]
[369625814,1751655032692,-500.0,0.00016438,2]
[369625816,1751655032701,-460.0,0.00016438,2]
[369625818,1751655032711,-460.0,0.00016438,2]
[369625820,1751655032719,-460.0,0.00016438,2]
[369625822,1751655032729,-460.0,0.00016438,2]
[369625824,1751655032738,-460.0,0.00016438,2]
[369625826,1751655032747,-460.0,0.00016438,2]
[369625828,1751655032757,-460.0,0.00016438,2]
[369625830,1751655032767,-460.0,0.00016438,2]
[369625832,1751655032776,-586.92908078,0.00016438,2]
[369625834,1751655032785,-460.0,0.00016438,2]
[369625836,1751655032795,-556.06555737,0.00016438,2]
[369625838,1751655032804,-552.83231273,0.00016438,2]
[369625840,1751655032813,-460.0,0.00016438,2]
[369625842,1751655032822,-500.0,0.00016438,2]
[369625844,1751655032831,-460.0,0.00016438,2]
[369625846,1751655032840,-460.0,0.00016438,2]
[369625848,1751655032850,-353.69701137,0.00016438,2]
[369625850,1751655032859,-430.0,0.00016438,2]
[369625852,1751655032868,-460.0,0.00016438,2]
[369625854,1751655032878,-428.91376492,0.00016438,2]
[369625856,1751655032887,-460.0,0.00016438,2]
[369625858,1751655032896,-461.63986407,0.00016438,2]
[369625860,1751655032905,-460.0,0.00016438,2]
[369625862,1751655032915,-460.0,0.00016438,2]
[369625864,1751655032924,-460.0,0.00016438,2]
[369625867,1751655032934,-460.0,0.00016438,2]
[369625869,1751655032943,-503.63774006,0.00016438,2]
[369625871,1751655032952,-460.0,0.00016438,2]
[369625873,1751655032962,-460.0,0.00016438,2]
[369625875,1751655032971,-460.0,0.00016438,2]
[369625877,1751655032980,-460.0,0.00016438,2]
[369625879,1751655032989,-460.0,0.00016438,2]
[369625881,1751655032999,-460.0,0.00016438,2]
[369625883,1751655033008,-460.0,0.00016438,2]
[369625885,1751655033017,-325.54818492,0.00016438,2]
[369625887,1751655033027,-460.0,0.00016438,2]
[369625889,1751655033036,-1559.09,0.00016438,2]
[369625891,1751655033046,-460.0,0.00016438,2]
[369625893,1751655033055,-460.0,0.00016438,2]
[369625895,1751655033065,-460.0,0.00016438,2]
[369625897,1751655033075,-460.0,0.00016438,2]
[369625899,1751655033084,-460.0,0.00016438,2]
[369625901,1751655033093,-460.0,0.00016438,2]
[369625903,1751655033103,-460.0,0.00016438,2]
[369625905,1751655033112,-460.0,0.00016438,2]
[369625907,1751655033121,-460.0,0.00016438,2]
[369625909,1751655033131,-460.0,0.00016438,2]
[369625911,1751655033140,-460.0,0.00016438,2]
[369625913,1751655033150,-460.0,0.00016438,2]
[369625915,1751655033159,-460.0,0.00016438,2]
[369625917,1751655033168,-460.0,0.00016438,2]
[369625919,1751655033178,-460.0,0.00016438,2]
[369625921,1751655033187,-460.0,0.00016438,2]
[369625923,1751655033197,-460.0,0.00016438,2]
[369625925,1751655033206,-561.68,0.00016438,2]
[369625927,1751655033216,-460.0,0.00016438,2]
[369625929,1751655033224,-460.0,0.00016438,2]
[369625931,1751655033233,-460.0,0.00016438,2]
[369625933,1751655033243,-460.0,0.00016438,2]
[369625935,1751655033251,-460.0,0.00016438,2]
[369625937,1751655033261,-460.0,0.00016438,2]
[369625939,1751655033269,-460.0,0.00016438,2]
[369625941,1751655033279,-460.0,0.00016438,2]
[369625943,1751655033288,-460.0,0.00016438,2]
[369625945,1751655033297,-460.0,0.00016438,2]
[369625947,1751655033307,-460.0,0.00016438,2]
[369625949,1751655033317,-460.0,0.00016438,2]
[369625951,1751655033326,-460.0,0.00016438,2]
[369625953,1751655033335,-460.0,0.00016438,2]
[369625955,1751655033344,-460.0,0.00016438,2]
[369625957,1751655033356,-460.0,0.00016438,2]
[369625959,1751655033367,-460.0,0.00016438,2]
[369625961,1751655033376,-460.0,0.00016438,2]
[369625963,1751655033386,-701.32,0.00016438,2]
[369625965,1751655033396,-460.0,0.00016438,2]
[369625967,1751655033406,-460.0,0.00016438,2]
[369625969,1751655033416,-213.35040464,0.00016438,2]
[369625971,1751655033426,-460.0,0.00016438,2]
[369625973,1751655033438,-733.04,0.00016438,2]
[369625975,1751655033448,-460.0,0.00016438,2]
[369625977,1751655033458,-460.0,0.00016438,2]
[369625979,1751655033468,-460.0,0.00016438,2]
[369625981,1751655033477,-460.0,0.00016438,2]
[369625983,1751655033486,-460.0,0.00016438,2]
[369625985,1751655033497,-460.0,0.00016438,2]
[369625987,1751655033506,-460.0,0.00016438,2]
[369625989,1751655033515,-605.72,0.00016438,2]
[369625991,1751655033525,-446.56293771,0.00016438,2]
[369625993,1751655033535,-460.5108284,0.00016438,2]
[369625994,1751655033545,-464.82,0.00016438,2]
[369625995,1751655033555,-560.95,0.00016438,2]
[369625996,1751655033564,-460.0,0.00016438,2]
[369625997,1751655033574,-166.0,0.00016438,2]
[369625998,1751655033583,-500.0,0.00016611,2]
[369625999,1751655033592,-500.0,0.00016611,2]
[369626000,1751655033602,-3530.01364457,0.00016679,2]
[369626001,1751655033611,-460.0,0.00016711,2]
[369626002,1751655033621,-460.0,0.00016711,2]
[369626003,1751655033630,-542.41934186,0.00016711,2]
[369626004,1751655033640,-460.0,0.00016712,2]
[369626005,1751655033649,-460.0,0.00016712,2]
[369626006,1751655033659,-460.0,0.00016712,2]
[369626007,1751655033668,-398.43302387,0.00016712,2]
[369626008,1751655033677,-460.0,0.00016712,2]
[369626009,1751655033687,-460.0,0.00016712,2]
[369626010,1751655033696,-460.0,0.00016712,2]
[369626011,1751655033706,-460.0,0.00016712,2]
[369626012,1751655033715,-460.0,0.00016712,2]
[369626013,1751655033724,-460.0,0.00016712,2]
[369626014,1751655033734,-460.0,0.00016712,2]
[369626015,1751655033744,-1559.09,0.00016712,2]
[369626016,1751655033753,-460.0,0.00016712,2]
[369626017,1751655033762,-460.0,0.00016712,2]
[369626018,1751655033772,-460.0,0.00016712,2]
[369626019,1751655033781,-460.0,0.00016712,2]
[369626020,1751655033791,-460.0,0.00016712,2]
[369626021,1751655033800,-460.0,0.00016712,2]
[369626022,1751655033809,-460.0,0.00016712,2]
[369626023,1751655033819,-460.0,0.00016712,2]
[369626024,1751655033828,-460.0,0.00016712,2]
[369626025,1751655033837,-460.0,0.00016712,2]
[369626026,1751655033846,-460.0,0.00016712,2]
[369626027,1751655033855,-189.36,0.00016712,2]
[369626028,1751655033865,-172.91,0.00016712,2]
[369626029,1751655033875,-460.0,0.00016712,2]
[369626030,1751655033884,-460.0,0.00016712,2]
[369626031,1751655033893,-460.0,0.00016712,2]
[369626032,1751655033903,-460.0,0.00016712,2]
[369626033,1751655033912,-460.0,0.00016712,2]
[369626034,1751655033921,-460.0,0.00016712,2]
[369626035,1751655033931,-460.0,0.00016712,2]
[369626036,1751655033940,-460.0,0.00016712,2]
[369626037,1751655033949,-499.58,0.00016712,2]
[369626038,1751655033958,-701.32,0.00016712,2]
[369626039,1751655033967,-460.0,0.00016712,2]
[369626040,1751655033977,-733.04,0.00016712,2]
[369626041,1751655033986,-460.0,0.00016712,2]
[369626042,1751655033995,-336.63,0.00016712,2]
[369626043,1751655034005,-460.0,0.00016712,2]
[369626044,1751655034014,-605.72,0.00016712,2]
[369626045,1751655034023,-464.82,0.00016712,2]
[369626046,1751655034032,-460.0,0.00016712,2]
[369626047,1751655034042,-1548.93401801,0.00016727,2]
[369626048,1751655034051,-151.0,0.000169,2]
[369626050,1751655034062,-2537.57569418,0.000169,2]
[369626052,1751655034072,-550.73,0.00016933,3]
[369626053,1751655034081,-275.36,0.00016933,3]
[369626054,1751655034090,-826.12,0.00016933,3]
[369626055,1751655034099,-690.642,0.00016974,2]
[369626056,1751655034109,-207.4,0.00016974,2]
[369626057,1751655034118,-151.0,0.00016974,2]
[369626058,1751655034127,-151.0,0.00016974,2]
[369626059,1751655034135,-151.0,0.00016974,2]
[369626060,1751655034145,-151.0,0.00016974,2]
[369626061,1751655034154,-151.0,0.00016974,2]
[369626062,1751655034164,-151.0,0.00016974,2]
[369626063,1751655034173,-151.0,0.00016974,2]
[369626064,1751655034183,-151.0,0.00016974,2]
[369626065,1751655034193,-151.0,0.00016974,2]
[369626066,1751655034202,-151.0,0.00016974,2]
[369626067,1751655034211,-214.38131551,0.00016974,2]
[369626068,1751655034221,-460.0,0.00016984,2]
[369626070,1751655034231,-460.0,0.00016985,2]
[369626072,1751655034240,-460.0,0.00016985,2]
[369626074,1751655034250,-151.0,0.00016986,2]
[369626076,1751655034260,-460.0,0.00016986,2]
[369626078,1751655034269,-460.0,0.00016986,2]
[369626080,1751655034279,-460.0,0.00016986,2]
[369626082,1751655034288,-460.0,0.00016986,2]
[369626084,1751655034297,-460.0,0.00016986,2]
[369626086,1751655034307,-1559.09,0.00016986,2]
[369626088,1751655034317,-404.61,0.00016986,2]
[369626090,1751655034327,-460.0,0.00016986,2]
[369626091,1751655034336,-424.53,0.00016986,2]
[369626093,1751655034345,-460.0,0.00016986,2]
[369626095,1751655034356,-460.0,0.00016986,2]
[369626097,1751655034368,-460.0,0.00016986,2]
[369626099,1751655034377,-460.0,0.00016986,2]
[369626101,1751655034387,-460.0,0.00016986,2]
[369626103,1751655034399,-460.0,0.00016986,2]
[369626105,1751655034409,-460.0,0.00016986,2]
[369626107,1751655034419,-460.0,0.00016986,2]
[369626109,1751655034430,-460.0,0.00016986,2]
[369626111,1751655034440,-701.32,0.00016986,2]
[369626113,1751655034450,-238.61,0.00016986,2]
[369626115,1751655034460,-733.04,0.00016986,2]
[369626116,1751655034469,-460.0,0.00016986,2]
[369626119,1751655034479,-605.72,0.00016986,2]
[369626121,1751655034489,-464.82,0.00016986,2]
[369626123,1751655034500,-3530.01364457,0.00017019,2]
[369626125,1751655034510,-420.0,0.00017081,2]
[369626127,1751655034520,-151.0,0.000171,2]
[369626129,1751655034530,-2537.57569397,0.00017176,2]
[369626131,1751655034539,-500.0,0.00017196,2]
[369626133,1751655034549,-160.66021085,0.00017196,2]
[369626135,1751655034559,-211.46403434,0.00017196,2]
[369626137,1751655034569,-500.0,0.00017196,2]
[369626139,1751655034579,-500.0,0.00017196,2]
[369626141,1751655034588,-500.0,0.00017196,2]
[369626143,1751655034598,-500.0,0.00017196,2]
[369626145,1751655034608,-500.0,0.00017196,2]
[369626147,1751655034617,-500.0,0.00017196,2]
[369626149,1751655034627,-500.0,0.00017196,2]
[369626151,1751655034636,-500.0,0.00017196,2]
[369626153,1751655034645,-500.0,0.00017196,2]
[369626154,1751655034656,-151.0,0.000172,2]
[369626156,1751655034665,-213.97741257,0.00017206,2]
[369626158,1751655034674,-160.0,0.00017207,2]
[369626160,1751655034683,-160.0,0.00017207,2]
[369626162,1751655034693,-160.0,0.00017207,2]
[369626164,1751655034702,-160.0,0.00017207,2]
[369626167,1751655034713,-12578.03337979,0.00017207,2]
[369626169,1751655034722,-160.0,0.00017207,2]
[369626171,1751655034731,-837.48520791,0.00017207,2]
[369626172,1751655034740,-160.0,0.00017207,2]
[369626173,1751655034751,-230.40116161,0.00017207,2]
[369626174,1751655034760,-847.91215827,0.00017207,2]
[369626175,1751655034768,-215.11345689,0.00017207,2]
[369626176,1751655034777,-500.0,0.00017218,2]
[369626177,1751655034786,-500.0,0.00017218,2]
[369626178,1751655034795,-500.0,0.00017218,2]
[369626179,1751655034804,-500.0,0.00017218,2]
[369626180,1751655034813,-500.0,0.00017218,2]
[369626181,1751655034823,-500.0,0.00017218,2]
[369626182,1751655034831,-460.0,0.00017258,2]
[369626183,1751655034840,-460.0,0.0001726,2]
[369626184,1751655034850,-460.0,0.0001726,2]
[369626185,1751655034859,-460.0,0.0001726,2]
[369626186,1751655034868,-460.0,0.0001726,2]
[369626187,1751655034877,-460.0,0.0001726,2]
[369626188,1751655034886,-1559.09,0.0001726,2]
[369626189,1751655034895,-460.0,0.0001726,2]
[369626190,1751655034904,-460.0,0.0001726,2]
[369626191,1751655034914,-460.0,0.0001726,2]
[369626192,1751655034923,-460.0,0.0001726,2]
[369626193,1751655034932,-242.33,0.0001726,2]
[369626194,1751655034941,-460.0,0.0001726,2]
[369626195,1751655034950,-460.0,0.0001726,2]
[369626196,1751655034959,-460.0,0.0001726,2]
[369626197,1751655034969,-460.0,0.0001726,2]
[369626198,1751655034978,-460.0,0.0001726,2]
[369626199,1751655034987,-701.32,0.0001726,2]
[369626200,1751655034996,-733.04,0.0001726,2]
[369626201,1751655035006,-460.0,0.0001726,2]
[369626202,1751655035015,-605.72,0.0001726,2]
[369626203,1751655035024,-464.82,0.0001726,2]
[369626204,1751655035033,-492.25,0.000173,2]
[369626205,1751655035042,-3530.01364457,0.0001736,2]
[369626206,1751655035051,-151.0,0.000174,2]
[369626207,1751655035061,-2537.57569397,0.00017452,2]